[Event "January 2 Late 2024"]
[Site "https://www.chess.com"]
[Date "2024.01.02"]
[Round "6"]
[White "Jaiveer Mahendru"]
[Black "Korol, Dimitry"]
[Result "1/2-1/2"]
[Board "146"]
[TimeControl "180+1"]
[WhiteFideId "25611151"]
[BlackFideId "14108003"]
[WhiteElo "2501"]
[BlackElo "2339"]
[WhiteTeam "IND"]
[BlackTeam "UKR"]
[WhiteClock "0:00:06"]
[BlackClock "0:00:33"]

1. f4 {[%clk 0:03:00]}  c5 {[%clk 0:02:57]} 2. Nf3 {[%clk 0:03:01]}  g6 {[%clk 0:02:57]} 3. g3 {[%clk 0:03:01]}  Bg7 {[%clk 0:02:57]} 4. Bg2 {[%clk 0:03:02]}  Nc6 {[%clk 0:02:57]} 5. O-O {[%clk 0:03:01]}  d6 {[%clk 0:02:58]} 6. e4 {[%clk 0:03:01]}  e5 {[%clk 0:02:58]} 7. Nc3 {[%clk 0:02:59]}  Nge7 {[%clk 0:02:57]} 8. Nd5 {[%clk 0:02:58]}  O-O {[%clk 0:02:55]} 9. d3 {[%clk 0:02:56]}  f5 {[%clk 0:02:53]} 10. c4 {[%clk 0:02:45]}  h6 {[%clk 0:02:49]} 11. fxe5 {[%clk 0:02:37]}  dxe5 {[%clk 0:02:48]} 12. Nh4 {[%clk 0:02:29]}  Kh7 {[%clk 0:02:47]} 13. Be3 {[%clk 0:02:24]}  Nd4 {[%clk 0:02:37]} 14. Bxd4 {[%clk 0:02:20]}  exd4 {[%clk 0:02:36]} 15. Qe2 {[%clk 0:01:23]}  Nxd5 {[%clk 0:02:18]} 16. cxd5 {[%clk 0:01:24]}  Qd6 {[%clk 0:00:51]} 17. exf5 {[%clk 0:01:19]}  Bxf5 {[%clk 0:00:50]} 18. Nxf5 {[%clk 0:00:52]}  gxf5 {[%clk 0:00:49]} 19. Rxf5 {[%clk 0:00:50]}  Rxf5 {[%clk 0:00:47]} 20. Be4 {[%clk 0:00:51]}  Rf8 {[%clk 0:00:45]} 21. Rf1 {[%clk 0:00:48]}  Kh8 {[%clk 0:00:45]} 22. Rxf5 {[%clk 0:00:42]}  Rxf5 {[%clk 0:00:45]} 23. Bxf5 {[%clk 0:00:43]}  Qxd5 {[%clk 0:00:46]} 24. Qe8+ {[%clk 0:00:41]}  Qg8 {[%clk 0:00:46]} 25. Qg6 {[%clk 0:00:41]}  b5 {[%clk 0:00:43]} 26. Be6 {[%clk 0:00:34]}  Qf8 {[%clk 0:00:41]} 27. Bf5 {[%clk 0:00:33]}  Qg8 {[%clk 0:00:41]} 28. Kf2 {[%clk 0:00:31]}  c4 {[%clk 0:00:40]} 29. g4 {[%clk 0:00:09]}  c3 {[%clk 0:00:39]} 30. g5 {[%clk 0:00:09]}  c2 {[%clk 0:00:32]} 31. gxh6 {[%clk 0:00:10]}  c1=Q {[%clk 0:00:32]} 32. hxg7+ {[%clk 0:00:10]}  Qxg7 {[%clk 0:00:32]} 33. Qe8+ {[%clk 0:00:06]}  Qg8 {[%clk 0:00:32]} 34. Qe5+ {[%clk 0:00:07]}  Qg7 {[%clk 0:00:32]} 35. Qb8+ {[%clk 0:00:08]}  Qg8 {[%clk 0:00:32]} 36. Qe5+ {[%clk 0:00:09]}  Qg7 {[%clk 0:00:33]} 37. Qb8+ {[%clk 0:00:06]}  Qg8 {[%clk 0:00:33]} 38. Qe5+ {[%clk 0:00:06]} 1/2-1/2

[Event "January 2 Late 2024"]
[Site "https://www.chess.com"]
[Date "2024.01.02"]
[Round "6"]
[White "Poddubnyi, Viktor"]
[Black "Gutierrez Olivares, Daniel"]
[Result "0-1"]
[Board "149"]
[TimeControl "180+1"]
[WhiteFideId "4141989"]
[BlackFideId "2264005"]
[WhiteElo "2333"]
[BlackElo "2488"]
[WhiteTeam "RUS"]
[BlackTeam "ESP"]
[WhiteClock "0:00:00"]
[BlackClock "0:00:12"]

1. e4 {[%clk 0:03:00]}  e6 {[%clk 0:02:55]} 2. d4 {[%clk 0:03:00]}  d5 {[%clk 0:02:54]} 3. Nd2 {[%clk 0:03:00]}  Nf6 {[%clk 0:02:52]} 4. e5 {[%clk 0:03:00]}  Nfd7 {[%clk 0:02:53]} 5. Bd3 {[%clk 0:03:00]}  c5 {[%clk 0:02:53]} 6. c3 {[%clk 0:03:01]}  Nc6 {[%clk 0:02:54]} 7. Ne2 {[%clk 0:03:01]}  cxd4 {[%clk 0:02:55]} 8. cxd4 {[%clk 0:03:01]}  f6 {[%clk 0:02:56]} 9. exf6 {[%clk 0:03:01]}  Qxf6 {[%clk 0:02:57]} 10. Nf3 {[%clk 0:02:58]}  h6 {[%clk 0:02:54]} 11. O-O {[%clk 0:02:47]}  Bd6 {[%clk 0:02:54]} 12. Ng3 {[%clk 0:02:32]}  O-O {[%clk 0:02:52]} 13. Re1 {[%clk 0:02:30]}  Rf7 {[%clk 0:02:47]} 14. Bc2 {[%clk 0:01:51]}  Nf8 {[%clk 0:02:41]} 15. Be3 {[%clk 0:01:41]}  Rc7 {[%clk 0:02:25]} 16. Ba4 {[%clk 0:01:19]}  Ne7 {[%clk 0:02:16]} 17. Ne5 {[%clk 0:01:15]}  Bxe5 {[%clk 0:02:01]} 18. dxe5 {[%clk 0:01:14]}  Qf7 {[%clk 0:02:02]} 19. f4 {[%clk 0:01:06]}  Nfg6 {[%clk 0:01:58]} 20. Qd2 {[%clk 0:01:04]}  Bd7 {[%clk 0:01:51]} 21. Bc2 {[%clk 0:00:59]}  Rf8 {[%clk 0:01:31]} 22. Rf1 {[%clk 0:00:52]}  Nh4 {[%clk 0:01:25]} 23. Bxa7 {[%clk 0:00:40]}  Bb5 {[%clk 0:01:20]} 24. Rf2 {[%clk 0:00:34]}  Nc6 {[%clk 0:01:05]} 25. Bb6 {[%clk 0:00:32]}  Rd7 {[%clk 0:01:03]} 26. a4 {[%clk 0:00:29]}  Ba6 {[%clk 0:01:02]} 27. b4 {[%clk 0:00:25]}  Bc4 {[%clk 0:01:01]} 28. b5 {[%clk 0:00:24]}  Ne7 {[%clk 0:01:00]} 29. Bc5 {[%clk 0:00:23]}  Rc8 {[%clk 0:00:59]} 30. Bxe7 {[%clk 0:00:20]}  Rxe7 {[%clk 0:00:58]} 31. Bd3 {[%clk 0:00:20]}  Bxd3 {[%clk 0:00:49]} 32. Qxd3 {[%clk 0:00:20]}  Rec7 {[%clk 0:00:49]} 33. a5 {[%clk 0:00:18]}  Rc3 {[%clk 0:00:45]} 34. Qd1 {[%clk 0:00:18]}  Ng6 {[%clk 0:00:29]} 35. f5 {[%clk 0:00:14]}  Nxe5 {[%clk 0:00:28]} 36. fxe6 {[%clk 0:00:13]}  Qxe6 {[%clk 0:00:29]} 37. a6 {[%clk 0:00:13]}  bxa6 {[%clk 0:00:25]} 38. bxa6 {[%clk 0:00:14]}  Nd3 {[%clk 0:00:23]} 39. a7 {[%clk 0:00:09]}  Kh7 {[%clk 0:00:15]} 40. Rd2 {[%clk 0:00:06]}  Rc1 {[%clk 0:00:13]} 41. Rxd3 {[%clk 0:00:05]}  Rxd1+ {[%clk 0:00:13]} 42. Rdxd1 {[%clk 0:00:05]}  Qb6+ {[%clk 0:00:13]} 43. Kh1 {[%clk 0:00:04]}  Ra8 {[%clk 0:00:11]} 44. Rxd5 {[%clk 0:00:02]}  Rxa7 {[%clk 0:00:12]} 45. Rad1 {[%clk 0:00:03]}  Qb2 {[%clk 0:00:12]} 46. R5d2 {[%clk 0:00:00]}  Ra1 {[%clk 0:00:12]} 0-1

[Event "January 2 Late 2024"]
[Site "https://www.chess.com"]
[Date "2024.01.02"]
[Round "6"]
[White "Suvorov, Luca"]
[Black "Zampronha, Wladimir Camilo"]
[Result "1-0"]
[Board "150"]
[TimeControl "180+1"]
[WhiteFideId "12977071"]
[BlackFideId "2103087"]
[WhiteElo "2476"]
[BlackElo "2321"]
[WhiteTeam "GER"]
[BlackTeam "BRA"]
[WhiteClock "0:00:09"]
[BlackClock "0:00:03"]

1. Nf3 {[%clk 0:03:00]}  Nf6 {[%clk 0:02:57]} 2. b3 {[%clk 0:02:58]}  g6 {[%clk 0:02:56]} 3. Bb2 {[%clk 0:02:55]}  Bg7 {[%clk 0:02:56]} 4. e3 {[%clk 0:02:52]}  O-O {[%clk 0:02:56]} 5. c4 {[%clk 0:02:50]}  d6 {[%clk 0:02:56]} 6. Be2 {[%clk 0:02:49]}  e5 {[%clk 0:02:56]} 7. d3 {[%clk 0:02:47]}  Re8 {[%clk 0:02:45]} 8. Nfd2 {[%clk 0:02:42]}  c6 {[%clk 0:02:40]} 9. g4 {[%clk 0:02:42]}  d5 {[%clk 0:02:36]} 10. g5 {[%clk 0:02:33]}  Nfd7 {[%clk 0:02:33]} 11. h4 {[%clk 0:02:33]}  Na6 {[%clk 0:02:17]} 12. Nc3 {[%clk 0:02:26]}  Nc7 {[%clk 0:02:15]} 13. Qc2 {[%clk 0:02:24]}  b5 {[%clk 0:01:54]} 14. O-O-O {[%clk 0:02:18]}  b4 {[%clk 0:01:49]} 15. Na4 {[%clk 0:02:17]}  Qe7 {[%clk 0:01:42]} 16. Rdg1 {[%clk 0:02:15]}  Nb6 {[%clk 0:01:37]} 17. h5 {[%clk 0:02:07]}  Nxa4 {[%clk 0:01:34]} 18. bxa4 {[%clk 0:02:08]}  dxc4 {[%clk 0:01:05]} 19. dxc4 {[%clk 0:02:06]}  Ne6 {[%clk 0:01:01]} 20. Ne4 {[%clk 0:02:01]}  Nc5 {[%clk 0:00:56]} 21. Bg4 {[%clk 0:01:44]}  Bxg4 {[%clk 0:00:54]} 22. Rxg4 {[%clk 0:01:45]}  Nxe4 {[%clk 0:00:52]} 23. Qxe4 {[%clk 0:01:46]}  b3 {[%clk 0:00:42]} 24. axb3 {[%clk 0:01:44]}  Rab8 {[%clk 0:00:42]} 25. hxg6 {[%clk 0:00:40]}  hxg6 {[%clk 0:00:38]} 26. Qc2 {[%clk 0:00:08]}  Qb4 {[%clk 0:00:37]} 27. Rgh4 {[%clk 0:00:06]}  Qxb3 {[%clk 0:00:36]} 28. Qxb3 {[%clk 0:00:06]}  Rxb3 {[%clk 0:00:35]} 29. f4 {[%clk 0:00:06]}  Rxb2 {[%clk 0:00:32]} 30. Kxb2 {[%clk 0:00:05]}  exf4+ {[%clk 0:00:32]} 31. Kc2 {[%clk 0:00:06]}  fxe3 {[%clk 0:00:31]} 32. Kd3 {[%clk 0:00:07]}  c5 {[%clk 0:00:26]} 33. Re4 {[%clk 0:00:06]}  Rxe4 {[%clk 0:00:08]} 34. Kxe4 {[%clk 0:00:07]}  Bd4 {[%clk 0:00:08]} 35. Kd3 {[%clk 0:00:07]}  Kg7 {[%clk 0:00:07]} 36. Rb1 {[%clk 0:00:08]}  f6 {[%clk 0:00:08]} 37. Rb7+ {[%clk 0:00:08]}  Kf8 {[%clk 0:00:07]} 38. gxf6 {[%clk 0:00:09]}  g5 {[%clk 0:00:07]} 39. Rxa7 {[%clk 0:00:09]}  g4 {[%clk 0:00:07]} 40. Rg7 {[%clk 0:00:09]}  Bxf6 {[%clk 0:00:07]} 41. Rxg4 {[%clk 0:00:09]}  Bd4 {[%clk 0:00:07]} 42. Re4 {[%clk 0:00:09]}  Kf7 {[%clk 0:00:03]} 43. a5 {[%clk 0:00:09]} 1-0

[Event "January 2 Late 2024"]
[Site "https://www.chess.com"]
[Date "2024.01.02"]
[Round "6"]
[White "Petre, Nad-Titus"]
[Black "Lalanne, Pablo"]
[Result "1-0"]
[Board "151"]
[TimeControl "180+1"]
[WhiteFideId "1204165"]
[BlackFideId "112151"]
[WhiteElo "2471"]
[BlackElo "2301"]
[WhiteTeam "ROU"]
[BlackTeam "ARG"]
[WhiteClock "0:01:10"]
[BlackClock "0:00:14"]

1. e4 {[%clk 0:03:00]}  c5 {[%clk 0:02:58]} 2. Nc3 {[%clk 0:03:00]}  Nc6 {[%clk 0:02:58]} 3. Bb5 {[%clk 0:02:59]}  g6 {[%clk 0:02:56]} 4. Bxc6 {[%clk 0:02:57]}  bxc6 {[%clk 0:02:57]} 5. d3 {[%clk 0:02:57]}  Bg7 {[%clk 0:02:57]} 6. Bd2 {[%clk 0:02:57]}  Rb8 {[%clk 0:02:55]} 7. Rb1 {[%clk 0:02:52]}  d5 {[%clk 0:02:54]} 8. Nge2 {[%clk 0:02:45]}  Nf6 {[%clk 0:02:47]} 9. O-O {[%clk 0:02:42]}  O-O {[%clk 0:02:45]} 10. f3 {[%clk 0:02:40]}  e5 {[%clk 0:02:22]} 11. b3 {[%clk 0:02:36]}  Ba6 {[%clk 0:02:18]} 12. Na4 {[%clk 0:02:23]}  Qe7 {[%clk 0:02:11]} 13. Be3 {[%clk 0:02:18]}  Nd7 {[%clk 0:02:08]} 14. c4 {[%clk 0:02:17]}  d4 {[%clk 0:01:51]} 15. Bc1 {[%clk 0:02:14]}  f5 {[%clk 0:01:50]} 16. Ba3 {[%clk 0:02:02]}  Rf7 {[%clk 0:01:49]} 17. Qd2 {[%clk 0:02:00]}  Rb4 {[%clk 0:01:32]} 18. Nxc5 {[%clk 0:01:51]}  Rb6 {[%clk 0:01:10]} 19. Nxd7 {[%clk 0:01:41]}  Qxd7 {[%clk 0:01:05]} 20. Bc5 {[%clk 0:01:41]}  Rb8 {[%clk 0:00:59]} 21. b4 {[%clk 0:01:33]}  Bf8 {[%clk 0:00:53]} 22. Bxf8 {[%clk 0:01:30]}  Rbxf8 {[%clk 0:00:53]} 23. a4 {[%clk 0:01:30]}  c5 {[%clk 0:00:39]} 24. bxc5 {[%clk 0:01:29]}  Qc6 {[%clk 0:00:32]} 25. Qa5 {[%clk 0:01:26]}  fxe4 {[%clk 0:00:22]} 26. fxe4 {[%clk 0:01:23]}  Rxf1+ {[%clk 0:00:21]} 27. Rxf1 {[%clk 0:01:24]}  Rxf1+ {[%clk 0:00:21]} 28. Kxf1 {[%clk 0:01:25]}  Bxc4 {[%clk 0:00:19]} 29. dxc4 {[%clk 0:01:18]}  Qxe4 {[%clk 0:00:19]} 30. c6 {[%clk 0:01:13]}  d3 {[%clk 0:00:18]} 31. Qd5+ {[%clk 0:01:09]}  Qxd5 {[%clk 0:00:18]} 32. cxd5 {[%clk 0:01:10]}  dxe2+ {[%clk 0:00:18]} 33. Kxe2 {[%clk 0:01:10]}  Kf7 {[%clk 0:00:14]} 34. c7 {[%clk 0:01:10]} 1-0

[Event "January 2 Late 2024"]
[Site "https://www.chess.com"]
[Date "2024.01.02"]
[Round "6"]
[White "Vifleemskaia, Svetlana"]
[Black "chucksterf10"]
[Result "1/2-1/2"]
[Board "154"]
[TimeControl "180+1"]
[WhiteFideId "4129490"]
[WhiteElo "2241"]
[BlackElo "2442"]
[WhiteTeam "RUS"]
[WhiteClock "0:00:19"]
[BlackClock "0:01:52"]

1. d4 {[%clk 0:02:34]}  d5 {[%clk 0:02:57]} 2. c4 {[%clk 0:02:34]}  Bf5 {[%clk 0:02:53]} 3. Nc3 {[%clk 0:02:34]}  e6 {[%clk 0:02:53]} 4. cxd5 {[%clk 0:02:27]}  exd5 {[%clk 0:02:49]} 5. Nf3 {[%clk 0:02:12]}  Nf6 {[%clk 0:02:46]} 6. Bg5 {[%clk 0:02:09]}  Bb4 {[%clk 0:02:45]} 7. e3 {[%clk 0:02:09]}  O-O {[%clk 0:02:43]} 8. a3 {[%clk 0:02:09]}  Bxc3+ {[%clk 0:02:43]} 9. bxc3 {[%clk 0:02:09]}  Nbd7 {[%clk 0:02:42]} 10. Bd3 {[%clk 0:02:09]}  Bxd3 {[%clk 0:02:40]} 11. Qxd3 {[%clk 0:02:09]}  h6 {[%clk 0:02:41]} 12. Bxf6 {[%clk 0:02:05]}  Qxf6 {[%clk 0:02:38]} 13. c4 {[%clk 0:02:05]}  dxc4 {[%clk 0:02:28]} 14. Qxc4 {[%clk 0:02:01]}  c5 {[%clk 0:02:27]} 15. O-O {[%clk 0:01:57]}  Rac8 {[%clk 0:02:27]} 16. d5 {[%clk 0:01:50]}  Ne5 {[%clk 0:02:24]} 17. Nxe5 {[%clk 0:01:48]}  Qxe5 {[%clk 0:02:25]} 18. e4 {[%clk 0:01:44]}  f5 {[%clk 0:02:24]} 19. d6+ {[%clk 0:01:18]}  Kh7 {[%clk 0:02:21]} 20. d7 {[%clk 0:01:18]}  Rcd8 {[%clk 0:02:20]} 21. Rad1 {[%clk 0:01:16]}  fxe4 {[%clk 0:02:19]} 22. Rd5 {[%clk 0:01:04]}  Qe6 {[%clk 0:02:18]} 23. Rxc5 {[%clk 0:00:59]}  Qxc4 {[%clk 0:02:14]} 24. Rxc4 {[%clk 0:01:00]}  Rxd7 {[%clk 0:01:55]} 25. Rxe4 {[%clk 0:00:59]}  Rf6 {[%clk 0:01:56]} 26. h4 {[%clk 0:00:54]}  h5 {[%clk 0:01:56]} 27. a4 {[%clk 0:00:48]}  Ra6 {[%clk 0:01:56]} 28. Rb1 {[%clk 0:00:46]}  b6 {[%clk 0:01:57]} 29. Rb5 {[%clk 0:00:46]}  g6 {[%clk 0:01:57]} 30. Rbe5 {[%clk 0:00:39]}  Kh6 {[%clk 0:01:57]} 31. Rg5 {[%clk 0:00:34]}  Rd6 {[%clk 0:01:52]} 32. g3 {[%clk 0:00:33]}  Kg7 {[%clk 0:01:51]} 33. Re7+ {[%clk 0:00:33]}  Kf6 {[%clk 0:01:52]} 34. Re4 {[%clk 0:00:31]}  Rd1+ {[%clk 0:01:50]} 35. Kg2 {[%clk 0:00:31]}  Ra1 {[%clk 0:01:51]} 36. Rc4 {[%clk 0:00:22]}  R1xa4 {[%clk 0:01:51]} 37. Rc6+ {[%clk 0:00:22]}  Kf7 {[%clk 0:01:52]} 38. Rcxg6 {[%clk 0:00:21]}  b5 {[%clk 0:01:52]} 39. Rg7+ {[%clk 0:00:21]}  Kf6 {[%clk 0:01:50]} 40. R7g6+ {[%clk 0:00:18]}  Kf7 {[%clk 0:01:50]} 41. Rg7+ {[%clk 0:00:19]}  Kf6 {[%clk 0:01:51]} 42. R7g6+ {[%clk 0:00:19]}  Kf7 {[%clk 0:01:52]} 1/2-1/2

[Event "January 2 Late 2024"]
[Site "https://www.chess.com"]
[Date "2024.01.02"]
[Round "6"]
[White "Morales Garcia, Sergio Joshafatt"]
[Black "Arlo2024"]
[Result "1/2-1/2"]
[Board "155"]
[TimeControl "180+1"]
[WhiteFideId "5106249"]
[WhiteElo "2439"]
[BlackElo "2230"]
[WhiteTeam "MEX"]
[WhiteClock "0:00:11"]
[BlackClock "0:00:08"]

1. d4 {[%clk 0:03:00]}  Nf6 {[%clk 0:02:50]} 2. c4 {[%clk 0:03:00]}  c5 {[%clk 0:02:50]} 3. d5 {[%clk 0:03:00]}  b5 {[%clk 0:02:51]} 4. cxb5 {[%clk 0:03:00]}  a6 {[%clk 0:02:51]} 5. bxa6 {[%clk 0:03:01]}  g6 {[%clk 0:02:50]} 6. Nc3 {[%clk 0:03:02]}  Bg7 {[%clk 0:02:51]} 7. e4 {[%clk 0:03:00]}  O-O {[%clk 0:02:50]} 8. e5 {[%clk 0:02:57]}  Ne8 {[%clk 0:02:49]} 9. Nf3 {[%clk 0:02:58]}  d6 {[%clk 0:02:48]} 10. exd6 {[%clk 0:02:58]}  Nxd6 {[%clk 0:02:47]} 11. Be2 {[%clk 0:02:58]}  Bxa6 {[%clk 0:02:47]} 12. O-O {[%clk 0:02:55]}  Nd7 {[%clk 0:02:46]} 13. Bxa6 {[%clk 0:02:50]}  Rxa6 {[%clk 0:02:44]} 14. Re1 {[%clk 0:02:51]}  Re8 {[%clk 0:02:39]} 15. Bf4 {[%clk 0:02:37]}  Nc4 {[%clk 0:02:34]} 16. Qd3 {[%clk 0:02:31]}  Ndb6 {[%clk 0:02:19]} 17. b3 {[%clk 0:02:31]}  Bxc3 {[%clk 0:02:03]} 18. Qxc3 {[%clk 0:02:30]}  Nd6 {[%clk 0:01:49]} 19. Qxc5 {[%clk 0:02:28]}  Qa8 {[%clk 0:01:42]} 20. Bxd6 {[%clk 0:02:19]}  exd6 {[%clk 0:01:34]} 21. Rxe8+ {[%clk 0:01:51]}  Qxe8 {[%clk 0:01:35]} 22. Qxd6 {[%clk 0:01:48]}  Qa8 {[%clk 0:01:29]} 23. Qc6 {[%clk 0:01:27]}  Rxa2 {[%clk 0:00:51]} 24. Qxa8+ {[%clk 0:01:23]}  Rxa8 {[%clk 0:00:51]} 25. Rxa8+ {[%clk 0:01:23]}  Nxa8 {[%clk 0:00:52]} 26. Ne5 {[%clk 0:01:07]}  Kf8 {[%clk 0:00:50]} 27. Kf1 {[%clk 0:00:58]}  f6 {[%clk 0:00:45]} 28. Nc4 {[%clk 0:00:57]}  Nc7 {[%clk 0:00:40]} 29. d6 {[%clk 0:00:55]}  Nb5 {[%clk 0:00:39]} 30. f3 {[%clk 0:00:42]}  Ke8 {[%clk 0:00:36]} 31. Kf2 {[%clk 0:00:41]}  Nd4 {[%clk 0:00:28]} 32. b4 {[%clk 0:00:40]}  Kd7 {[%clk 0:00:29]} 33. h4 {[%clk 0:00:34]}  Kc6 {[%clk 0:00:26]} 34. g4 {[%clk 0:00:29]}  Kb5 {[%clk 0:00:25]} 35. d7 {[%clk 0:00:22]}  Ne6 {[%clk 0:00:24]} 36. Na5 {[%clk 0:00:18]}  Nd8 {[%clk 0:00:20]} 37. Nb3 {[%clk 0:00:10]}  Kxb4 {[%clk 0:00:20]} 38. Nd4 {[%clk 0:00:10]}  Kc5 {[%clk 0:00:19]} 39. Ke3 {[%clk 0:00:10]}  Kd6 {[%clk 0:00:17]} 40. h5 {[%clk 0:00:10]}  Kxd7 {[%clk 0:00:16]} 41. hxg6 {[%clk 0:00:10]}  hxg6 {[%clk 0:00:16]} 42. f4 {[%clk 0:00:10]}  Kd6 {[%clk 0:00:14]} 43. Ke4 {[%clk 0:00:10]}  Nf7 {[%clk 0:00:10]} 44. Nf3 {[%clk 0:00:10]}  Ke7 {[%clk 0:00:10]} 45. f5 {[%clk 0:00:10]}  gxf5+ {[%clk 0:00:09]} 46. Kxf5 {[%clk 0:00:10]}  Nd6+ {[%clk 0:00:09]} 47. Kf4 {[%clk 0:00:10]}  Kf7 {[%clk 0:00:09]} 48. Nd4 {[%clk 0:00:10]}  Kg6 {[%clk 0:00:09]} 49. Ne2 {[%clk 0:00:09]}  Nf7 {[%clk 0:00:09]} 50. Ng3 {[%clk 0:00:09]}  Ne5 {[%clk 0:00:08]} 51. Ne4 {[%clk 0:00:09]}  Nxg4 {[%clk 0:00:08]} 52. Kxg4 {[%clk 0:00:10]}  f5+ {[%clk 0:00:08]} 53. Kf4 {[%clk 0:00:10]}  fxe4 {[%clk 0:00:08]} 54. Kxe4 {[%clk 0:00:11]} 1/2-1/2

[Event "January 2 Late 2024"]
[Site "https://www.chess.com"]
[Date "2024.01.02"]
[Round "6"]
[White "Vujacic, Igor"]
[Black "Urbina Perez, Juan Antonio"]
[Result "1-0"]
[Board "156"]
[TimeControl "180+1"]
[WhiteFideId "932620"]
[BlackFideId "2217368"]
[WhiteElo "2435"]
[BlackElo "2431"]
[WhiteTeam "MNE"]
[BlackTeam "ESP"]
[WhiteClock "0:00:06"]
[BlackClock "0:00:00"]

1. d4 {[%clk 0:03:00]}  Nf6 {[%clk 0:02:57]} 2. Bf4 {[%clk 0:03:00]}  c5 {[%clk 0:02:56]} 3. dxc5 {[%clk 0:03:00]}  e6 {[%clk 0:02:55]} 4. Bd6 {[%clk 0:02:59]}  Bxd6 {[%clk 0:02:54]} 5. Qxd6 {[%clk 0:02:58]}  Qe7 {[%clk 0:02:37]} 6. Qxe7+ {[%clk 0:02:46]}  Kxe7 {[%clk 0:02:38]} 7. Nd2 {[%clk 0:02:30]}  Na6 {[%clk 0:02:34]} 8. e4 {[%clk 0:02:25]}  Nxc5 {[%clk 0:02:32]} 9. e5 {[%clk 0:02:17]}  Nd5 {[%clk 0:02:15]} 10. a3 {[%clk 0:02:14]}  f6 {[%clk 0:02:13]} 11. Ngf3 {[%clk 0:01:56]}  fxe5 {[%clk 0:02:05]} 12. Nxe5 {[%clk 0:01:57]}  d6 {[%clk 0:02:04]} 13. Nd3 {[%clk 0:01:52]}  Nxd3+ {[%clk 0:01:59]} 14. Bxd3 {[%clk 0:01:53]}  Nf4 {[%clk 0:01:59]} 15. Be4 {[%clk 0:01:48]}  d5 {[%clk 0:01:58]} 16. Bf3 {[%clk 0:01:47]}  Bd7 {[%clk 0:01:56]} 17. g3 {[%clk 0:01:45]}  Ng6 {[%clk 0:01:56]} 18. O-O {[%clk 0:01:42]}  Rac8 {[%clk 0:01:56]} 19. Rac1 {[%clk 0:01:38]}  Rhf8 {[%clk 0:01:54]} 20. Rfe1 {[%clk 0:01:37]}  Kd6 {[%clk 0:01:45]} 21. c4 {[%clk 0:01:07]}  Ne5 {[%clk 0:01:44]} 22. Be2 {[%clk 0:01:08]}  Bc6 {[%clk 0:01:25]} 23. f4 {[%clk 0:01:05]}  Nxc4 {[%clk 0:01:19]} 24. Bxc4 {[%clk 0:01:04]}  dxc4 {[%clk 0:01:20]} 25. Nxc4+ {[%clk 0:00:59]}  Ke7 {[%clk 0:01:18]} 26. Ne5 {[%clk 0:00:54]}  Bd5 {[%clk 0:01:16]} 27. Kf2 {[%clk 0:00:50]}  Rfd8 {[%clk 0:00:57]} 28. Ke3 {[%clk 0:00:45]}  a6 {[%clk 0:00:54]} 29. g4 {[%clk 0:00:34]}  g6 {[%clk 0:00:51]} 30. b4 {[%clk 0:00:32]}  Bb3 {[%clk 0:00:35]} 31. h4 {[%clk 0:00:27]}  Ba4 {[%clk 0:00:27]} 32. g5 {[%clk 0:00:19]}  Bb5 {[%clk 0:00:21]} 33. Red1 {[%clk 0:00:15]}  Rxd1 {[%clk 0:00:15]} 34. Rxc8 {[%clk 0:00:14]}  Rd8 {[%clk 0:00:14]} 35. Rc7+ {[%clk 0:00:14]}  Kd6 {[%clk 0:00:11]} 36. Rxb7 {[%clk 0:00:12]}  Rc8 {[%clk 0:00:12]} 37. Rxh7 {[%clk 0:00:10]}  Rc3+ {[%clk 0:00:12]} 38. Kd4 {[%clk 0:00:09]}  Rxa3 {[%clk 0:00:09]} 39. h5 {[%clk 0:00:07]}  gxh5 {[%clk 0:00:07]} 40. Rxh5 {[%clk 0:00:07]}  Rg3 {[%clk 0:00:07]} 41. g6 {[%clk 0:00:07]}  Rg1 {[%clk 0:00:00]} 42. Rg5 {[%clk 0:00:06]} 1-0

[Event "January 2 Late 2024"]
[Site "https://www.chess.com"]
[Date "2024.01.02"]
[Round "6"]
[White "Gardezi, Arsal"]
[Black "Keller, Peter"]
[Result "1-0"]
[Board "158"]
[TimeControl "180+1"]
[WhiteFideId "30949521"]
[BlackFideId "1272105"]
[WhiteElo "2137"]
[BlackElo "2225"]
[WhiteTeam "USA"]
[BlackTeam "GER"]
[WhiteClock "0:00:13"]
[BlackClock "0:00:08"]

1. Nf3 {[%clk 0:02:57]}  d5 {[%clk 0:02:56]} 2. d4 {[%clk 0:02:53]}  Nf6 {[%clk 0:02:56]} 3. g3 {[%clk 0:02:49]}  Bf5 {[%clk 0:02:49]} 4. Bg2 {[%clk 0:02:40]}  e6 {[%clk 0:02:48]} 5. Bf4 {[%clk 0:02:08]}  c5 {[%clk 0:02:39]} 6. c3 {[%clk 0:02:08]}  Qb6 {[%clk 0:02:24]} 7. Qc1 {[%clk 0:02:04]}  Nc6 {[%clk 0:02:22]} 8. Nbd2 {[%clk 0:02:04]}  cxd4 {[%clk 0:02:16]} 9. cxd4 {[%clk 0:02:00]}  Nxd4 {[%clk 0:02:14]} 10. Nxd4 {[%clk 0:02:00]}  Qxd4 {[%clk 0:02:15]} 11. O-O {[%clk 0:01:58]}  Be7 {[%clk 0:02:08]} 12. Qc7 {[%clk 0:01:55]}  Qb6 {[%clk 0:02:03]} 13. Rac1 {[%clk 0:01:44]}  Bd8 {[%clk 0:01:57]} 14. Qd6 {[%clk 0:01:38]}  Qxd6 {[%clk 0:01:53]} 15. Bxd6 {[%clk 0:01:38]}  Kd7 {[%clk 0:01:52]} 16. Bc5 {[%clk 0:01:32]}  Rc8 {[%clk 0:01:36]} 17. Bxa7 {[%clk 0:01:21]}  b6 {[%clk 0:01:36]} 18. Nf3 {[%clk 0:00:56]}  Bc7 {[%clk 0:01:13]} 19. Nd4 {[%clk 0:00:52]}  Ra8 {[%clk 0:00:55]} 20. Nb5 {[%clk 0:00:46]}  Rhc8 {[%clk 0:00:55]} 21. Nxc7 {[%clk 0:00:41]}  Rxa7 {[%clk 0:00:55]} 22. Nb5 {[%clk 0:00:30]}  Rxa2 {[%clk 0:00:40]} 23. Rxc8 {[%clk 0:00:22]}  Kxc8 {[%clk 0:00:41]} 24. Nd6+ {[%clk 0:00:20]}  Kc7 {[%clk 0:00:28]} 25. Nxf7 {[%clk 0:00:20]}  Rxb2 {[%clk 0:00:28]} 26. Ne5 {[%clk 0:00:19]}  Rxe2 {[%clk 0:00:23]} 27. Rc1+ {[%clk 0:00:19]}  Kd6 {[%clk 0:00:18]} 28. Nf7+ {[%clk 0:00:16]}  Kd7 {[%clk 0:00:17]} 29. Ng5 {[%clk 0:00:17]}  b5 {[%clk 0:00:13]} 30. Bf1 {[%clk 0:00:16]}  Rb2 {[%clk 0:00:13]} 31. Nf3 {[%clk 0:00:17]}  b4 {[%clk 0:00:11]} 32. Ne5+ {[%clk 0:00:17]}  Kd6 {[%clk 0:00:11]} 33. Nf7+ {[%clk 0:00:16]}  Ke7 {[%clk 0:00:12]} 34. Rc7+ {[%clk 0:00:16]}  Ke8 {[%clk 0:00:09]} 35. Nd6+ {[%clk 0:00:15]}  Kf8 {[%clk 0:00:07]} 36. Rf7+ {[%clk 0:00:13]}  Kg8 {[%clk 0:00:08]} 37. Rb7 {[%clk 0:00:13]}  b3 {[%clk 0:00:08]} 38. Rb8+ {[%clk 0:00:13]}  Ne8 {[%clk 0:00:08]} 39. Rxe8# {[%clk 0:00:13]} 1-0